fUST/lending_fUST_20250427
["ID","MTS","AMOUNT","RATE_DAILY","PERIOD"]
[359102847,1745707847543,-500.0,0.00013699,2]
[359102848,1745707847554,-500.0,0.00013699,2]
[359102849,1745707847563,-500.0,0.00013699,2]
[359102850,1745707847573,-500.0,0.00013699,2]
[359102851,1745707847583,-500.0,0.00013699,2]
[359102852,1745707847592,-500.0,0.00013699,2]
[359102853,1745707847602,-500.0,0.00013699,2]
[359102854,1745707847611,-500.0,0.00013699,2]
[359102855,1745707847621,-500.0,0.00013699,2]
[359102857,1745707847631,-500.0,0.00013699,2]
[359102859,1745707847640,-500.0,0.00013699,2]
[359102861,1745707847650,-500.0,0.00013699,2]
[359102862,1745707847660,-500.0,0.00013699,2]
[359102863,1745707847669,-500.0,0.00013699,2]
[359102864,1745707847679,-500.0,0.00013699,2]
[359102865,1745707847689,-500.0,0.00013699,2]
[359102866,1745707847698,-500.0,0.00013699,2]
[359102867,1745707847709,-500.0,0.00013699,2]
[359102868,1745707847718,-500.0,0.00013699,2]
[359102869,1745707847728,-500.0,0.00013699,2]
[359102870,1745707847738,-500.0,0.00013699,2]
[359102871,1745707847747,-500.0,0.00013699,2]
[359102872,1745707847757,-500.0,0.00013699,2]
[359102873,1745707847766,-500.0,0.00013699,2]
[359102874,1745707847776,-500.0,0.00016438,2]
[359102875,1745707847786,-494.54339249,0.00016438,2]
[359102876,1745707847797,-400.0,0.00016438,2]
[359102877,1745707847807,-193.14288463,0.00016438,2]
[359102878,1745707847817,-337.8440298,0.00016438,2]
[359102879,1745707847826,-200.0,0.00016438,2]
[359102880,1745707847836,-332.53,0.00016438,2]
[359102881,1745707847845,-154.723611,0.00016712,2]
[359102882,1745707847855,-316.52296754,0.00018082,2]
[359102883,1745707847865,-433.31754871,0.00018082,2]
[359102884,1745707847875,-226.35,0.00018082,2]
[359102885,1745707847885,-1282.03,0.00018082,2]
[359102886,1745707847895,-2225.13,0.00018082,2]
[359102887,1745707847905,-584.8,0.00018082,2]
[359102888,1745707847915,-400.0,0.00018082,2]
[359102889,1745707847925,-295.34,0.00018082,2]
[359102890,1745707847935,-400.0,0.00018082,2]
[359102891,1745707847950,-1369.58,0.00018082,2]
[359102892,1745707847960,-400.0,0.00018082,2]
[359102893,1745707847970,-400.0,0.00018082,2]
[359102894,1745707847980,-400.0,0.00018082,2]
[359102895,1745707847991,-294.274334,0.00018082,2]
[359102896,1745707848000,-400.0,0.00018082,2]
[359102897,1745707848010,-151.0,0.00018082,2]
[359102898,1745707848020,-720.18,0.00018082,2]
[359102899,1745707848030,-1906.92,0.00018082,2]
[359102900,1745707848039,-919.46,0.00018082,2]
[359102901,1745707848049,-400.0,0.00018082,2]
[359102902,1745707848059,-928.81,0.00018082,2]
[359102903,1745707848068,-400.0,0.00018082,2]
[359102904,1745707848078,-200.0,0.00018082,2]
[359102905,1745707848087,-457.32,0.00018082,2]
[359102906,1745707848098,-400.0,0.00018082,2]
[359102907,1745707848107,-200.0,0.00018082,2]
[359102908,1745707848117,-400.0,0.00018082,2]
[359102909,1745707848127,-409.34,0.00018082,2]
[359102910,1745707848138,-819.72,0.00018082,2]
[359102911,1745707848148,-400.0,0.00018082,2]
[359102912,1745707848158,-400.0,0.00018082,2]
[359102913,1745707848167,-400.0,0.00018082,2]
[359102914,1745707848177,-1094.74,0.00018082,2]
[359102915,1745707848187,-1151.8,0.00018082,2]
[359102916,1745707848196,-400.0,0.00018082,2]
[359102917,1745707848206,-400.0,0.00018082,2]
[359102918,1745707848215,-1402.5,0.00018082,2]
[359102919,1745707848225,-481.5,0.00018082,2]
[359102920,1745707848235,-911.203198,0.00018082,2]
[359102921,1745707848244,-911.203198,0.00018082,2]
[359102922,1745707848254,-796.69,0.00018082,2]
[359102923,1745707848264,-1243.37746162,0.00018348,2]
[359102924,1745707848273,-508.92,0.00018356,2]
[359102925,1745707848283,-400.0,0.00018356,2]
[359102926,1745707848293,-400.0,0.00018356,2]
[359102927,1745707848303,-400.0,0.00018356,2]
[359102928,1745707848312,-489.72,0.00018356,2]
[359102929,1745707848321,-400.0,0.00018356,2]
[359102930,1745707848330,-400.0,0.00018356,2]
[359102931,1745707848340,-400.0,0.00018356,2]
[359102932,1745707848350,-400.0,0.00018356,2]
[359102933,1745707848360,-397.6,0.00018356,2]
[359102934,1745707848370,-400.0,0.00018356,2]
[359102935,1745707848379,-400.0,0.00018356,2]
[359102936,1745707848389,-400.0,0.00018356,2]
[359102937,1745707848398,-400.0,0.00018356,2]
[359102938,1745707848407,-400.0,0.00018356,2]
[359102939,1745707848416,-1282.03,0.00018356,2]
[359102940,1745707848426,-2225.13,0.00018356,2]
[359102941,1745707848435,-584.8,0.00018356,2]
[359102942,1745707848445,-400.0,0.00018356,2]
[359102943,1745707848456,-400.0,0.00018356,2]
[359102944,1745707848466,-1369.58,0.00018356,2]
[359102945,1745707848475,-400.0,0.00018356,2]
[359102946,1745707848485,-400.0,0.00018356,2]
[359102947,1745707848495,-400.0,0.00018356,2]
[359102948,1745707848506,-400.0,0.00018356,2]
[359102949,1745707848516,-720.18,0.00018356,2]
[359102950,1745707848526,-1906.92,0.00018356,2]
[359102951,1745707848536,-919.46,0.00018356,2]
[359102952,1745707848545,-352.98,0.00018356,2]
[359102953,1745707848555,-928.81,0.00018356,2]
[359102954,1745707848564,-400.0,0.00018356,2]
[359102955,1745707848574,-457.32,0.00018356,2]
[359102956,1745707848584,-400.0,0.00018356,2]
[359102957,1745707848593,-400.0,0.00018356,2]
[359102958,1745707848603,-409.34,0.00018356,2]
[359102959,1745707848613,-819.72,0.00018356,2]
[359102960,1745707848623,-400.0,0.00018356,2]
[359102961,1745707848632,-400.0,0.00018356,2]
[359102962,1745707848642,-400.0,0.00018356,2]
[359102963,1745707848795,-1094.74,0.00018356,2]
[359102964,1745707848810,-1151.8,0.00018356,2]
[359102965,1745707848820,-400.0,0.00018356,2]
[359102966,1745707848829,-400.0,0.00018356,2]
[359102967,1745707848839,-1402.5,0.00018356,2]
[359102968,1745707848849,-481.5,0.00018356,2]
[359102969,1745707848859,-796.69,0.00018356,2]
[359102970,1745707848869,-151.0,0.000184,2]
[359102971,1745707848879,-173.569,0.00018458,2]
[359102972,1745707848888,-508.92,0.0001863,2]
[359102973,1745707848898,-400.0,0.0001863,2]
[359102974,1745707848908,-400.0,0.0001863,2]
[359102975,1745707848917,-400.0,0.0001863,2]
[359102976,1745707848928,-489.72,0.0001863,2]
[359102977,1745707848937,-400.0,0.0001863,2]
[359102978,1745707848952,-475.38,0.0001863,2]
[359102979,1745707848962,-400.0,0.0001863,2]
[359102980,1745707848971,-400.0,0.0001863,2]
[359102981,1745707848981,-400.0,0.0001863,2]
[359102982,1745707848992,-400.0,0.0001863,2]
[359102983,1745707849002,-400.0,0.0001863,2]
[359102984,1745707849012,-400.0,0.0001863,2]
[359102985,1745707849024,-400.0,0.0001863,2]
[359102986,1745707849035,-1282.03,0.0001863,2]
[359102987,1745707849045,-2225.13,0.0001863,2]
[359102988,1745707849054,-584.8,0.0001863,2]
[359102989,1745707849065,-400.0,0.0001863,2]
[359102990,1745707849074,-400.0,0.0001863,2]
[359102991,1745707849085,-1369.58,0.0001863,2]
[359102992,1745707849094,-400.0,0.0001863,2]
[359102993,1745707849104,-400.0,0.0001863,2]
[359102994,1745707849114,-400.0,0.0001863,2]
[359102995,1745707849124,-400.0,0.0001863,2]
[359102996,1745707849133,-720.18,0.0001863,2]
[359102997,1745707849143,-1906.92,0.0001863,2]
[359102998,1745707849153,-919.46,0.0001863,2]
[359102999,1745707849163,-928.81,0.0001863,2]
[359103000,1745707849174,-400.0,0.0001863,2]
[359103001,1745707849185,-457.32,0.0001863,2]
[359103002,1745707849195,-400.0,0.0001863,2]
[359103003,1745707849205,-400.0,0.0001863,2]
[359103004,1745707849216,-409.34,0.0001863,2]
[359103005,1745707849226,-819.72,0.0001863,2]
[359103006,1745707849235,-400.0,0.0001863,2]
[359103007,1745707849246,-400.0,0.0001863,2]
[359103008,1745707849256,-400.0,0.0001863,2]
[359103009,1745707849266,-1094.74,0.0001863,2]
[359103010,1745707849276,-1151.8,0.0001863,2]
[359103011,1745707849287,-400.0,0.0001863,2]
[359103012,1745707849297,-400.0,0.0001863,2]
[359103013,1745707849308,-1402.5,0.0001863,2]
[359103014,1745707849318,-481.5,0.0001863,2]
[359103015,1745707849328,-796.69,0.0001863,2]
[359103016,1745707849338,-542.03273518,0.00018689,2]
[359103017,1745707849348,-150.0,0.000189,2]
[359103018,1745707849357,-256.3454,0.00018904,2]
[359103019,1745707849367,-508.92,0.00018904,2]
[359103020,1745707849377,-400.0,0.00018904,2]
[359103021,1745707849387,-400.0,0.00018904,2]
[359103022,1745707849397,-400.0,0.00018904,2]
[359103023,1745707849406,-489.72,0.00018904,2]
[359103024,1745707849416,-400.0,0.00018904,2]
[359103025,1745707849426,-400.0,0.00018904,2]
[359103026,1745707849435,-400.0,0.00018904,2]
[359103027,1745707849445,-400.0,0.00018904,2]
[359103028,1745707849455,-400.0,0.00018904,2]
[359103029,1745707849464,-400.0,0.00018904,2]
[359103030,1745707849475,-400.0,0.00018904,2]
[359103031,1745707849485,-400.0,0.00018904,2]
[359103032,1745707849495,-315.702788,0.00018904,2]
[359103033,1745707849504,-315.702788,0.00018904,2]
[359103034,1745707849514,-1282.03,0.00018904,2]
[359103035,1745707849524,-2225.13,0.00018904,2]
[359103036,1745707849534,-584.8,0.00018904,2]
[359103037,1745707849543,-400.0,0.00018904,2]
[359103038,1745707849553,-400.0,0.00018904,2]
[359103039,1745707849563,-1369.58,0.00018904,2]
[359103040,1745707849573,-400.0,0.00018904,2]
[359103041,1745707849583,-400.0,0.00018904,2]
[359103042,1745707849593,-400.0,0.00018904,2]
[359103043,1745707849603,-400.0,0.00018904,2]
[359103044,1745707849613,-720.18,0.00018904,2]
[359103045,1745707849622,-1906.92,0.00018904,2]
[359103046,1745707849632,-919.46,0.00018904,2]
[359103047,1745707849641,-928.81,0.00018904,2]
[359103048,1745707849651,-400.0,0.00018904,2]
[359103049,1745707849661,-457.32,0.00018904,2]
[359103050,1745707849671,-400.0,0.00018904,2]
[359103051,1745707849682,-400.0,0.00018904,2]
[359103052,1745707849692,-409.34,0.00018904,2]
[359103053,1745707849703,-819.72,0.00018904,2]
[359103054,1745707849713,-400.0,0.00018904,2]
[359103055,1745707849723,-400.0,0.00018904,2]
[359103056,1745707849733,-400.0,0.00018904,2]
[359103057,1745707849744,-1094.74,0.00018904,2]
[359103058,1745707849754,-1151.8,0.00018904,2]
[359103059,1745707849765,-400.0,0.00018904,2]
[359103060,1745707849774,-400.0,0.00018904,2]
[359103061,1745707849784,-1402.5,0.00018904,2]
[359103062,1745707849794,-481.5,0.00018904,2]
[359103063,1745707849803,-796.69,0.00018904,2]
[359103064,1745707849814,-151.0,0.00019152,2]
[359103065,1745707849825,-151.0,0.00019152,2]
[359103066,1745707849835,-151.0,0.00019152,2]
[359103067,1745707849846,-500.0,0.00019152,2]
[359103068,1745707849857,-1000.0,0.00019152,2]
[359103069,1745707849867,-1000.0,0.00019152,2]
[359103070,1745707849878,-500.0,0.00019152,2]
[359103071,1745707849888,-1000.0,0.00019152,2]
[359103072,1745707849898,-1000.0,0.00019152,2]
[359103073,1745707849908,-1000.0,0.00019152,2]
[359103074,1745707849918,-1000.0,0.00019152,2]
[359103075,1745707849928,-1000.0,0.00019152,2]
[359103076,1745707849938,-1000.0,0.00019152,2]
[359103077,1745707849948,-500.0,0.00019152,2]
[359103078,1745707849958,-1000.0,0.00019152,2]
[359103079,1745707849968,-500.0,0.00019152,2]
[359103080,1745707849978,-1000.0,0.00019152,2]
[359103081,1745707849988,-508.92,0.00019178,2]
[359103082,1745707849998,-400.0,0.00019178,2]
[359103083,1745707850008,-400.0,0.00019178,2]
[359103084,1745707850017,-151.0,0.00019178,2]
[359103085,1745707850027,-400.0,0.00019178,2]
[359103086,1745707850037,-489.72,0.00019178,2]
[359103087,1745707850048,-400.0,0.00019178,2]
[359103088,1745707850057,-400.0,0.00019178,2]
[359103089,1745707850067,-400.0,0.00019178,2]
[359103090,1745707850077,-400.0,0.00019178,2]
[359103091,1745707850087,-177.13,0.00019178,2]
[359103092,1745707850096,-400.0,0.00019178,2]
[359103093,1745707850107,-400.0,0.00019178,2]
[359103094,1745707850117,-281.96,0.00019178,2]
[359103095,1745707850127,-1282.03,0.00019178,2]
[359103096,1745707850137,-2225.13,0.00019178,2]
[359103097,1745707850147,-584.8,0.00019178,2]
[359103098,1745707850157,-400.0,0.00019178,2]
[359103099,1745707850168,-400.0,0.00019178,2]
[359103100,1745707850178,-1369.58,0.00019178,2]
[359103101,1745707850188,-400.0,0.00019178,2]
[359103102,1745707850198,-400.0,0.00019178,2]
[359103103,1745707850208,-400.0,0.00019178,2]
[359103104,1745707850217,-400.0,0.00019178,2]
[359103105,1745707850228,-720.18,0.00019178,2]
[359103106,1745707850238,-1906.92,0.00019178,2]
[359103107,1745707850248,-919.46,0.00019178,2]
[359103108,1745707850258,-928.81,0.00019178,2]
[359103109,1745707850267,-340.51,0.00019178,2]
[359103110,1745707850278,-457.32,0.00019178,2]
[359103111,1745707850289,-400.0,0.00019178,2]
[359103112,1745707850300,-400.0,0.00019178,2]
[359103113,1745707850310,-409.34,0.00019178,2]
[359103114,1745707850322,-819.72,0.00019178,2]
[359103115,1745707850333,-400.0,0.00019178,2]
[359103116,1745707850344,-400.0,0.00019178,2]
[359103117,1745707850355,-400.0,0.00019178,2]
[359103118,1745707850368,-1094.74,0.00019178,2]
[359103119,1745707850378,-1151.8,0.00019178,2]
[359103120,1745707850388,-400.0,0.00019178,2]
[359103121,1745707850397,-400.0,0.00019178,2]
[359103122,1745707850407,-1402.5,0.00019178,2]
[359103123,1745707850417,-481.5,0.00019178,2]
[359103124,1745707850426,-796.69,0.00019178,2]
[359103125,1745707850435,-300.0,0.00019178,2]
[359103126,1745707850445,-313.2348916,0.00019178,2]
[359103127,1745707850454,-1243.37746162,0.0001921,2]
[359103128,1745707850464,-179.91004498,0.00019301,2]
[359103129,1745707850473,-306.07151977,0.00019339,2]
[359103130,1745707850483,-18340.70908017,0.00019452,2]
[359103131,1745707850499,-5387.61652021,0.00019452,2]
[359103132,1745707850511,-1778.7893169,0.00019452,2]
[359103133,1745707850522,-20433.77346099,0.00019452,2]
[359103134,1745707850531,-4500.82236309,0.00019452,3]
[359103135,1745707850545,-252.15239808,0.00019452,3]
[359103136,1745707850556,-561.84778779,0.00019452,3]
[359103137,1745707850570,-991.30369863,0.00019452,3]
[359103138,1745707850872,-268.735003,0.00019452,3]
[359103139,1745707850884,-92229.86966047,0.00019452,3]
[359103140,1745707850894,-840.35238838,0.00019452,3]
[359103141,1745707850905,-12582.09293779,0.00019452,3]
[359103142,1745707850914,-508.92,0.00019452,2]
[359103143,1745707850923,-400.0,0.00019452,2]
[359103144,1745707850933,-400.0,0.00019452,2]
[359103145,1745707850946,-400.0,0.00019452,2]
[359103146,1745707850955,-489.72,0.00019452,2]
[359103147,1745707850965,-400.0,0.00019452,2]
[359103148,1745707850975,-400.0,0.00019452,2]
[359103149,1745707850986,-400.0,0.00019452,2]
[359103150,1745707850996,-400.0,0.00019452,2]
[359103151,1745707851006,-400.0,0.00019452,2]
[359103152,1745707851015,-400.0,0.00019452,2]
[359103153,1745707851027,-1282.03,0.00019452,2]
[359103154,1745707851037,-2225.13,0.00019452,2]
[359103155,1745707851047,-584.8,0.00019452,2]
[359103156,1745707851057,-400.0,0.00019452,2]
[359103157,1745707851067,-400.0,0.00019452,2]
[359103158,1745707851078,-1369.58,0.00019452,2]
[359103159,1745707851091,-400.0,0.00019452,2]
[359103160,1745707851101,-400.0,0.00019452,2]
[359103161,1745707851112,-400.0,0.00019452,2]
[359103162,1745707851121,-400.0,0.00019452,2]
[359103163,1745707851131,-180.612736,0.00019452,2]
[359103164,1745707851141,-720.18,0.00019452,2]
[359103165,1745707851151,-1906.92,0.00019452,2]
[359103166,1745707851160,-919.46,0.00019452,2]
[359103167,1745707851170,-928.81,0.00019452,2]
[359103168,1745707851179,-457.32,0.00019452,2]
[359103169,1745707851189,-400.0,0.00019452,2]
[359103170,1745707851199,-400.0,0.00019452,2]
[359103171,1745707851208,-409.34,0.00019452,2]
[359103172,1745707851218,-819.72,0.00019452,2]
[359103173,1745707851227,-400.0,0.00019452,2]
[359103174,1745707851236,-363.21389084,0.00019452,2]
[359103175,1745707851246,-400.0,0.00019452,2]
[359103176,1745707851256,-1094.74,0.00019452,2]
[359103177,1745707851266,-1151.8,0.00019452,2]
[359103178,1745707851276,-400.0,0.00019452,2]
[359103179,1745707851286,-385.59,0.00019452,2]
[359103180,1745707851296,-1402.5,0.00019452,2]
[359103181,1745707851307,-481.5,0.00019452,2]
[359103182,1745707851317,-911.203198,0.00019452,2]
[359103183,1745707851326,-911.203198,0.00019452,2]
[359103184,1745707851336,-796.69,0.00019452,2]
[359103185,1745707851346,-306.07151978,0.00019721,2]
[359103186,1745707851355,-1152.0,0.00019721,2]
[359103187,1745707851365,-508.92,0.00019726,2]
[359103188,1745707851374,-400.0,0.00019726,2]
[359103189,1745707851384,-400.0,0.00019726,2]
[359103190,1745707851393,-400.0,0.00019726,2]
[359103191,1745707851403,-489.72,0.00019726,2]
[359103192,1745707851412,-400.0,0.00019726,2]
[359103193,1745707851422,-400.0,0.00019726,2]
[359103194,1745707851432,-400.0,0.00019726,2]
[359103195,1745707851441,-400.0,0.00019726,2]
[359103196,1745707851451,-400.0,0.00019726,2]
[359103197,1745707851461,-210.0,0.00019726,2]
[359103198,1745707851471,-1282.03,0.00019726,2]
[359103199,1745707851482,-2225.13,0.00019726,2]
[359103200,1745707851492,-584.8,0.00019726,2]
[359103201,1745707851503,-400.0,0.00019726,2]
[359103202,1745707851513,-400.0,0.00019726,2]
[359103203,1745707851523,-1369.58,0.00019726,2]
[359103204,1745707851535,-400.0,0.00019726,2]
[359103205,1745707851546,-400.0,0.00019726,2]
[359103206,1745707851557,-400.0,0.00019726,2]
[359103207,1745707851568,-400.0,0.00019726,2]
[359103208,1745707851578,-720.18,0.00019726,2]
[359103209,1745707851588,-1906.92,0.00019726,2]
[359103210,1745707851598,-919.46,0.00019726,2]
[359103211,1745707851607,-928.81,0.00019726,2]
[359103212,1745707851617,-457.32,0.00019726,2]
[359103213,1745707851627,-400.0,0.00019726,2]
[359103214,1745707851636,-400.0,0.00019726,2]
[359103215,1745707851645,-409.34,0.00019726,2]
[359103216,1745707851655,-819.72,0.00019726,2]
[359103217,1745707851665,-400.0,0.00019726,2]
[359103218,1745707851675,-400.0,0.00019726,2]
[359103219,1745707851686,-1094.74,0.00019726,2]
[359103220,1745707851695,-1151.8,0.00019726,2]
[359103221,1745707851705,-400.0,0.00019726,2]
[359103222,1745707851716,-1402.5,0.00019726,2]
[359103223,1745707851726,-481.5,0.00019726,2]
[359103224,1745707851736,-796.69,0.00019726,2]
[359103225,1745707851885,-281.3650986,0.00019798,2]
[359103226,1745707851899,-1000.0,0.000199,5]
[359103227,1745707851910,-500.0,0.00019973,2]
[359103228,1745707851921,-500.0,0.00019973,2]
[359103229,1745707851931,-500.0,0.00019997,2]
[359103230,1745707851942,-160.0,0.00019997,3]
[359103231,1745707851952,-160.0,0.00019997,3]
[359103232,1745707851963,-68573.3018163,0.00019998,2]
[359103233,1745707851973,-151.0,0.00019998,2]
[359103234,1745707851982,-151.0,0.00019998,2]
[359103235,1745707851992,-151.0,0.00019998,2]
[359103236,1745707852002,-151.0,0.00019998,2]
[359103237,1745707852011,-168.834175,0.00019998,2]
[359103238,1745707852021,-151.0,0.00019998,2]
[359103239,1745707852031,-315.702788,0.00019998,2]
[359103240,1745707852041,-315.702788,0.00019998,2]
[359103241,1745707852051,-911.203198,0.00019998,2]
[359103242,1745707852061,-911.203198,0.00019998,2]
[359103243,1745707852072,-508.92,0.0002,2]
[359103244,1745707852081,-400.0,0.0002,2]
[359103245,1745707852091,-205.4,0.0002,2]
[359103246,1745707852100,-400.0,0.0002,2]
[359103247,1745707852111,-489.72,0.0002,2]
[359103248,1745707852120,-400.0,0.0002,2]
[359103249,1745707852130,-400.0,0.0002,2]
[359103250,1745707852140,-273.99,0.0002,2]
[359103251,1745707852150,-400.0,0.0002,2]
[359103252,1745707852160,-160.0,0.0002,3]
[359103253,1745707852169,-291.30702037,0.0002,2]
[359103254,1745707852179,-1282.03,0.0002,2]
[359103255,1745707852188,-2225.13,0.0002,2]
[359103256,1745707852198,-584.8,0.0002,2]
[359103257,1745707852207,-400.0,0.0002,2]
[359103258,1745707852217,-400.0,0.0002,2]
[359103259,1745707852227,-1369.58,0.0002,2]
[359103260,1745707852237,-400.0,0.0002,2]
[359103261,1745707852247,-400.0,0.0002,2]
[359103262,1745707852258,-400.0,0.0002,2]
[359103263,1745707852268,-400.0,0.0002,2]
[359103264,1745707852277,-720.18,0.0002,2]
[359103265,1745707852287,-1906.92,0.0002,2]
[359103266,1745707852297,-919.46,0.0002,2]
[359103267,1745707852307,-928.81,0.0002,2]
[359103268,1745707852316,-457.32,0.0002,2]
[359103269,1745707852326,-432.19577925,0.0002,2]
[359103270,1745707852336,-400.0,0.0002,2]
[359103271,1745707852346,-409.34,0.0002,2]
[359103272,1745707852356,-819.72,0.0002,2]
[359103273,1745707852366,-400.0,0.0002,2]
[359103274,1745707852376,-400.0,0.0002,2]
[359103275,1745707852386,-1094.74,0.0002,2]
[359103276,1745707852396,-1151.8,0.0002,2]
[359103277,1745707852406,-400.0,0.0002,2]
[359103278,1745707852415,-2000.0,0.0002,4]
[359103279,1745707852425,-1402.5,0.0002,2]
[359103280,1745707852435,-481.5,0.0002,2]
[359103281,1745707852445,-796.69,0.0002,2]
[359103282,1745707852454,-1243.37746162,0.00020072,2]
[359103283,1745707852463,-306.8680667,0.00020149,2]
[359103284,1745707852473,-545.0,0.00020196,2]
[359103285,1745707852483,-706.0,0.00020196,2]
[359103286,1745707852493,-2217.0,0.00020196,2]
[359103287,1745707852502,-151.0,0.00020196,2]
[359103288,1745707852512,-634.0,0.000202,2]
[359103289,1745707852522,-508.92,0.00020273,2]
[359103290,1745707852532,-400.0,0.00020273,2]
[359103291,1745707852541,-400.0,0.00020273,2]
[359103292,1745707852551,-489.72,0.00020273,2]
[359103293,1745707852561,-400.0,0.00020273,2]
[359103294,1745707852570,-497.23377814,0.00020273,2]
[359103295,1745707852580,-400.0,0.00020273,2]
[359103296,1745707852589,-315.702788,0.00020273,2]
[359103297,1745707852599,-315.702788,0.00020273,2]
[359103298,1745707852608,-1282.03,0.00020273,2]
[359103299,1745707852617,-2225.13,0.00020273,2]
[359103300,1745707852627,-584.8,0.00020273,2]
[359103301,1745707852637,-400.0,0.00020273,2]
[359103302,1745707852646,-400.0,0.00020273,2]
[359103303,1745707852656,-1369.58,0.00020273,2]
[359103304,1745707852665,-400.0,0.00020273,2]
[359103305,1745707852674,-400.0,0.00020273,2]
[359103306,1745707852686,-400.0,0.00020273,2]
[359103307,1745707852697,-400.0,0.00020273,2]
[359103308,1745707852707,-720.18,0.00020273,2]
[359103309,1745707852718,-1906.92,0.00020273,2]
[359103310,1745707852728,-919.46,0.00020273,2]
[359103311,1745707852738,-928.81,0.00020273,2]
[359103312,1745707852750,-457.32,0.00020273,2]
[359103313,1745707852760,-400.0,0.00020273,2]
[359103314,1745707852771,-409.34,0.00020273,2]
[359103315,1745707852782,-819.72,0.00020273,2]
[359103316,1745707852794,-400.0,0.00020273,2]
[359103317,1745707852805,-400.0,0.00020273,2]
[359103318,1745707852815,-1094.74,0.00020273,2]
[359103319,1745707852825,-1151.8,0.00020273,2]
[359103320,1745707852834,-400.0,0.00020273,2]
[359103321,1745707852844,-1402.5,0.00020273,2]
[359103322,1745707852855,-481.5,0.00020273,2]
[359103323,1745707852865,-796.69,0.00020273,2]
[359103324,1745707852875,-151.0,0.000203,3]
[359103325,1745707852885,-1970.51517762,0.00020328,2]
[359103326,1745707852894,-151.0,0.000205,4]
[359103327,1745707852905,-160.0,0.00020547,3]
[359103328,1745707852916,-508.92,0.00020547,2]
[359103329,1745707852925,-400.0,0.00020547,2]
[359103330,1745707852935,-400.0,0.00020547,2]
[359103331,1745707852948,-489.72,0.00020547,2]
[359103332,1745707852958,-400.0,0.00020547,2]
[359103333,1745707852968,-400.0,0.00020547,2]
[359103334,1745707852978,-1282.03,0.00020547,2]
[359103335,1745707852989,-2225.13,0.00020547,2]
[359103336,1745707852998,-584.8,0.00020547,2]
[359103337,1745707853008,-403.77242055,0.00020547,2]
[359103338,1745707853019,-400.0,0.00020547,2]
[359103339,1745707853029,-1369.58,0.00020547,2]
[359103340,1745707853038,-400.0,0.00020547,2]
[359103341,1745707853048,-400.0,0.00020547,2]
[359103342,1745707853058,-400.0,0.00020547,2]
[359103343,1745707853068,-400.0,0.00020547,2]
[359103344,1745707853078,-720.18,0.00020547,2]
[359103345,1745707853088,-1906.92,0.00020547,2]
[359103346,1745707853098,-919.46,0.00020547,2]
[359103347,1745707853108,-928.81,0.00020547,2]
[359103348,1745707853119,-457.32,0.00020547,2]
[359103349,1745707853129,-400.0,0.00020547,2]